[Event "76th Montenegro Championship 2024"]
[Site "Podgorica"]
[Date "2024.02.12"]
[Round "8.11"]
[White "Pobor, Milo"]
[Black "Sukovic, Andrej"]
[Result "1/2-1/2"]
[ECO "C18"]
[WhiteElo "2201"]
[BlackElo "2339"]
[Annotator "RC"]
[PlyCount "121"]
[EventDate "2024.02.06"]
[EventType "swiss"]
[EventCountry "MNE"]
[SourceTitle "playchess.com"]
[Source "ChessBase"]
[SourceQuality "1"]
[TimeControl "40/5400+30:1800+30"]

1. e4 {[%emt 0:00:32]} e6 {[%emt 0:02:32]} 2. d4 {[%emt 0:00:07]} d5 {[%emt 0:00:05]} 3. Nc3 {[%emt 0:00:06]} Bb4 {[%emt 0:00:05]} 4. e5 {[%emt 0:00:04]} c5 {[%emt 0:00:11]} 5. a3 {[%emt 0:00:06]} Ba5 {[%emt 0:00:05]} 6. b4 {[%emt 0:00:48]} cxd4 {[%emt 0:00:06]} 7. Nb5 {[%emt 0:00:05]} Bc7 {[%emt 0:00:07]} 8. f4 {[%emt 0:03:44]} Bd7 {[%emt 0:00:40]} 9. Nxc7+ {[%emt 0:00:21]} Qxc7 {[%emt 0:00:08]} 10. Bb2 {[%emt 0:01:18]} Ne7 {[%emt 0:00:08]} 11. Bd3 {[%emt 0:09:44]} Ba4 {[%emt 0:00:18]} 12. Nf3 {[%emt 0:02:46]} Nbc6 {[%emt 0:00:17]} 13. O-O {[%emt 0:02:49]} Qb6 {[%emt 0:00:07]} 14. Kh1 {[%emt 0:10:37]} Bb5 {[%emt 0:02:21]} 15. Bxd4 {[%emt 0:08:55]} Nxd4 {[%emt 0:01:03]} 16. Nxd4 {[%emt 0:01:23]} Bc4 {[%emt 0:15:44]} 17. c3 {[%emt 0:06:16]} O-O {[%emt 0:05:31]} 18. Rf3 {[%emt 0:01:45]} Bxd3 {[%emt 0:02:15]} 19. Qxd3 {[%emt 0:00:16]} Rac8 {[%emt 0:08:57]} 20. Rh3 {[%emt 0:04:13]} h6 {[%emt 0:10:29]} 21. Rf1 {[%emt 0:20:05]} Rc4 {[%emt 0:06:24]} 22. Rff3 {[%emt 0:02:17]} Rfc8 {[%emt 0:04:40]} 23. Qd1 {[%emt 0:00:13]} Nf5 {[%emt 0:12:42]} 24. Nxf5 {[%emt 0:04:58]} exf5 {[%emt 0:00:08]} 25. Qxd5 {[%emt 0:08:02]} Rd4 {[%emt 0:00:11]} 26. Qb3 {[%emt 0:00:21]} Qe6 {[%emt 0:00:14]} 27. Qc2 {[%emt 0:02:51]} Qa2 {[%emt 0:00:57]} 28. Qc1 {[%emt 0:00:08]} Qe2 {[%emt 0:03:53]} 29. Rf1 {[%emt 0:00:41]} Rd2 {[%emt 0:00:21]} 30. Rg1 {[%emt 0:00:32]} Rc2 {[%emt 0:06:27]} 31. Qd1 {[%emt 0:02:31]} Qxd1 {[%emt 0:00:22]} 32. Rxd1 {[%emt 0:00:05]} R8xc3 {[%emt 0:00:28]} 33. Rxc3 {[%emt 0:00:38]} Rxc3 {[%emt 0:00:04]} 34. g3 {[%emt 0:01:53]} g5 {[%emt 0:02:51]} 35. Rd7 {[%emt 0:01:32]} Rxa3 {[%emt 0:02:29]} 36. Rxb7 {[%emt 0:00:07]} gxf4 {[%emt 0:06:58]} 37. gxf4 {[%emt 0:00:06]} Rf3 {[%emt 0:00:05]} 38. Rxa7 {[%emt 0:01:10]} Rxf4 {[%emt 0:00:10]} 39. Ra6 {[%emt 0:02:01]} Rxb4 {[%emt 0:02:28]} 40. Rxh6 {[%emt 0:00:00]} Re4 {[%emt 0:00:00]} 41. Kg2 {[%emt 0:00:14]} Kg7 {[%emt 0:00:44]} 42. Ra6 {[%emt 0:03:57]} Rxe5 {[%emt 0:00:34]} 43. Kf3 {[%emt 0:00:37]} Re4 {[%emt 0:03:55]} 44. Rb6 {[%emt 0:01:02]} Rh4 {[%emt 0:00:23]} 45. Kg3 {[%emt 0:00:06]} Rg4+ {[%emt 0:00:09]} 46. Kf3 {[%emt 0:00:06]} Rg6 {[%emt 0:00:07]} 47. Rb4 {[%emt 0:01:47]} Kf6 {[%emt 0:00:49]} 48. h4 {[%emt 0:00:19]} Rg1 {[%emt 0:00:50]} 49. Rb6+ {[%emt 0:01:48]} Kg7 {[%emt 0:00:10]} 50. h5 {[%emt 0:05:56]} Rh1 {[%emt 0:01:03]} 51. Kf4 {[%emt 0:00:15]} Rxh5 {[%emt 0:00:07]} 52. Ra6 {[%emt 0:00:53]} f6 {[%emt 0:01:26]} 53. Ra8 {[%emt 0:00:07]} Rg5 {[%emt 0:01:32]} 54. Rb8 {[%emt 0:00:23]} Kf7 {[%emt 0:00:10]} 55. Ra8 {[%emt 0:00:08]} Rg1 {[%emt 0:00:33]} 56. Kxf5 {[%emt 0:00:07]} Rf1+ {[%emt 0:00:07]} 57. Kg4 {[%emt 0:00:23]} f5+ {[%emt 0:00:56]} 58. Kg5 {[%emt 0:03:55]} Ke6 {[%emt 0:00:18]} 59. Ra6+ {[%emt 0:00:10]} Ke5 {[%emt 0:00:03]} 60. Ra5+ {[%emt 0:00:06]} Kd4 {[%emt 0:00:11]} 61. Rxf5 {[%emt 0:00:06]} 1/2-1/2

[Event "76th Montenegro Championship 2024"]
[Site "Podgorica"]
[Date "2024.02.12"]
[Round "8.12"]
[White "Vujosevic, Vladimir"]
[Black "Abramovic, Dragoljub"]
[Result "1/2-1/2"]
[ECO "C62"]
[WhiteElo "2335"]
[BlackElo "2018"]
[Annotator "ChessBase"]
[PlyCount "251"]
[EventDate "2024.02.06"]
[EventType "swiss"]
[EventCountry "MNE"]
[SourceTitle "playchess.com"]
[Source "ChessBase"]
[SourceQuality "1"]
[TimeControl "40/5400+30:1800+30"]

1. e4 {[%emt 0:00:09]} Nc6 {[%emt 0:18:06]} 2. Nf3 {[%emt 0:00:31]} d6 {[%emt 0:00:49]} 3. d4 {[%emt 0:01:33]} e5 {[%emt 0:02:01]} 4. Bb5 {[%emt 0:01:11]} exd4 {[%emt 0:01:54]} 5. Nxd4 {[%emt 0:00:58]} Bd7 {[%emt 0:00:14]} 6. Bxc6 {[%emt 0:00:19]} bxc6 {[%emt 0:00:37]} 7. Nc3 {[%emt 0:01:42]} g6 {[%emt 0:02:33]} 8. Be3 {[%emt 0:02:41]} Bg7 {[%emt 0:00:11]} 9. Qd2 {[%emt 0:00:36]} Qb8 {[%emt 0:05:13]} 10. b3 {[%emt 0:02:32]} Nf6 {[%emt 0:04:42]} 11. Bh6 {[%emt 0:05:02]} O-O {[%emt 0:04:38]} 12. Bxg7 {[%emt 0:02:04]} Kxg7 {[%emt 0:00:03]} 13. O-O {[%emt 0:00:57]} c5 {[%emt 0:00:52]} 14. Nde2 {[%emt 0:02:35]} Bc6 {[%emt 0:02:11]} 15. f3 {[%emt 0:02:03]} Qe8 {[%emt 0:02:55]} 16. Rad1 {[%emt 0:00:35]} a5 {[%emt 0:03:41]} 17. Ng3 {[%emt 0:00:58]} Ng8 {[%emt 0:01:38]} 18. Rfe1 {[%emt 0:01:16]} f6 {[%emt 0:01:16]} 19. Nf1 {[%emt 0:03:05]} Qf7 {[%emt 0:07:44]} 20. Ne3 {[%emt 0:01:15]} a4 {[%emt 0:01:10]} 21. Ncd5 {[%emt 0:04:48]} axb3 {[%emt 0:02:07]} 22. axb3 {[%emt 0:00:10]} Ra7 {[%emt 0:02:18]} 23. Qc3 {[%emt 0:01:11]} Ne7 {[%emt 0:02:22]} 24. f4 {[%emt 0:03:32]} Nxd5 {[%emt 0:04:06]} 25. Nxd5 {[%emt 0:04:32]} Raa8 {[%emt 0:01:52]} 26. Qd3 {[%emt 0:02:59]} Rae8 {[%emt 0:02:20]} 27. Nc3 {[%emt 0:00:45]} Re7 {[%emt 0:01:02]} 28. Re2 {[%emt 0:01:49]} Rfe8 {[%emt 0:00:18]} 29. Rde1 {[%emt 0:00:19]} Qe6 {[%emt 0:04:36]} 30. h3 {[%emt 0:00:12]} Qd7 {[%emt 0:01:48]} 31. Kh1 {[%emt 0:01:33]} Qe6 {[%emt 0:02:38]} 32. Ra1 {[%emt 0:02:02]} Qc8 {[%emt 0:05:43]} 33. Kg1 {[%emt 0:01:13]} Qb7 {[%emt 0:00:31]} 34. Rae1 {[%emt 0:00:40]} Qb4 {[%emt 0:00:29]} 35. Kf1 {[%emt 0:06:11]} f5 {[%emt 0:05:15]} 36. Na2 {[%emt 0:03:17]} Qa5 {[%emt 0:00:23]} 37. Nc3 {[%emt 0:00:12]} Qb4 {[%emt 0:03:52]} 38. Na2 {[%emt 0:00:11]} Qa5 {[%emt 0:00:04]} 39. Nc3 {[%emt 0:00:39]} fxe4 {[%emt 0:00:50]} 40. Nxe4 {[%emt 0:00:00]} Bxe4 {[%emt 0:00:00]} 41. Rxe4 {[%emt 0:01:26]} Qxe1+ {[%emt 0:00:35]} 42. Rxe1 {[%emt 0:00:19]} Rxe1+ {[%emt 0:00:02]} 43. Kf2 {[%emt 0:00:13]} R1e4 {[%emt 0:01:00]} 44. Kf3 {[%emt 0:01:31]} Rd4 {[%emt 0:01:10]} 45. Qc3 {[%emt 0:00:13]} Rf8 {[%emt 0:00:55]} 46. g3 {[%emt 0:00:23]} g5 {[%emt 0:00:30]} 47. b4 {[%emt 0:01:16]} gxf4 {[%emt 0:00:31]} 48. bxc5 {[%emt 0:00:25]} fxg3+ {[%emt 0:00:25]} 49. Kxg3 {[%emt 0:00:12]} dxc5 {[%emt 0:10:23]} 50. Qxc5 {[%emt 0:00:14]} Rd7 {[%emt 0:00:37]} 51. Qc6 {[%emt 0:00:15]} Re7 {[%emt 0:01:02]} 52. Qc5 {[%emt 0:00:28]} Rff7 {[%emt 0:04:49]} 53. Qc3+ {[%emt 0:00:43]} Rf6 {[%emt 0:00:22]} 54. Qd4 {[%emt 0:00:28]} c6 {[%emt 0:00:36]} 55. Qc3 {[%emt 0:00:32]} Rd7 {[%emt 0:00:31]} 56. Qe5 {[%emt 0:00:32]} Rd5 {[%emt 0:01:41]} 57. Qc3 {[%emt 0:02:49]} Rg5+ {[%emt 0:01:07]} 58. Kh2 {[%emt 0:00:23]} Rd5 {[%emt 0:02:04]} 59. Kg3 {[%emt 0:01:32]} Kf7 {[%emt 0:00:37]} 60. Qe3 {[%emt 0:00:24]} h6 {[%emt 0:00:51]} 61. Qe4 {[%emt 0:02:42]} Rg5+ {[%emt 0:02:22]} 62. Kh2 {[%emt 0:01:25]} Rgg6 {[%emt 0:04:58]} 63. Qd4 {[%emt 0:05:50]} Rd6 {[%emt 0:01:05]} 64. Qe5 {[%emt 0:00:30]} Rge6 {[%emt 0:01:37]} 65. Qf5+ {[%emt 0:03:10]} Ke7 {[%emt 0:00:08]} 66. Qc5 {[%emt 0:00:18]} Kd8 {[%emt 0:00:11]} 67. Qa5+ {[%emt 0:01:01]} Kd7 {[%emt 0:00:20]} 68. Qa7+ {[%emt 0:00:48]} Ke8 {[%emt 0:00:23]} 69. Qc5 {[%emt 0:00:21]} Rd5 {[%emt 0:00:09]} 70. Qc4 {[%emt 0:01:18]} Kd7 {[%emt 0:00:12]} 71. Kg3 {[%emt 0:04:45]} h5 {[%emt 0:00:31]} 72. Kf3 {[%emt 0:01:43]} Rf5+ {[%emt 0:00:33]} 73. Kg3 {[%emt 0:00:23]} Ree5 {[%emt 0:00:32]} 74. Qd4+ {[%emt 0:02:17]} Rd5 {[%emt 0:00:38]} 75. Qb4 {[%emt 0:01:11]} Kc7 {[%emt 0:01:21]} 76. Qe7+ {[%emt 0:00:48]} Kb6 {[%emt 0:00:10]} 77. Qb4+ {[%emt 0:00:15]} Rb5 {[%emt 0:00:12]} 78. Qd4+ {[%emt 0:00:58]} Kc7 {[%emt 0:02:04]} 79. Qa7+ {[%emt 0:02:49]} Rb7 {[%emt 0:00:21]} 80. Qd4 {[%emt 0:00:15]} Rd5 {[%emt 0:00:18]} 81. Qe3 {[%emt 0:01:17]} Kd6 {[%emt 0:01:17]} 82. Qa3+ {[%emt 0:01:25]} Kd7 {[%emt 0:01:14]} 83. Qf8 {[%emt 0:00:49]} Kc7 {[%emt 0:00:44]} 84. Qf4+ {[%emt 0:01:39]} Kb6 {[%emt 0:00:15]} 85. Qe3+ {[%emt 0:01:13]} Ka6 {[%emt 0:00:32]} 86. Qa3+ {[%emt 0:00:33]} Ra5 {[%emt 0:00:20]} 87. Qc3 {[%emt 0:00:42]} Rb6 {[%emt 0:00:40]} 88. Qd3+ {[%emt 0:00:30]} Rbb5 {[%emt 0:01:06]} 89. Qc4 {[%emt 0:00:53]} Kb6 {[%emt 0:00:22]} 90. Qd4+ {[%emt 0:00:34]} Rc5 {[%emt 0:00:50]} 91. Qd8+ {[%emt 0:01:06]} Kb5 {[%emt 0:03:43]} 92. Qb8+ {[%emt 0:01:37]} Kc4 {[%emt 0:00:29]} 93. Qb3+ {[%emt 0:00:10]} Kd4 {[%emt 0:00:01]} 94. Qd3+ {[%emt 0:00:14]} Ke5 {[%emt 0:00:14]} 95. Qe3+ {[%emt 0:00:54]} Kd6 {[%emt 0:00:26]} 96. Qf4+ {[%emt 0:01:06]} Re5 {[%emt 0:00:18]} 97. Qd4+ {[%emt 0:01:55]} Rad5 {[%emt 0:00:13]} 98. Qb4+ {[%emt 0:00:45]} Ke6 {[%emt 0:00:08]} 99. Qc4 {[%emt 0:00:21]} c5 {[%emt 0:00:21]} 100. Qa6+ {[%emt 0:00:28]} Kf5 {[%emt 0:00:45]} 101. Qc4 {[%emt 0:00:53]} Kg6 {[%emt 0:00:56]} 102. Qa6+ {[%emt 0:00:45]} Kg5 {[%emt 0:01:12]} 103. Qc4 {[%emt 0:00:30]} Rf5 {[%emt 0:00:52]} 104. Qe4 {[%emt 0:00:47]} Rde5 {[%emt 0:00:16]} 105. Qh4+ {[%emt 0:01:01]} Kg6 {[%emt 0:00:07]} 106. Qc4 {[%emt 0:00:18]} Re3+ {[%emt 0:00:31]} 107. Kg2 {[%emt 0:00:43]} Re7 {[%emt 0:01:10]} 108. Kg3 {[%emt 0:00:27]} Rfe5 {[%emt 0:00:28]} 109. Qd3+ {[%emt 0:00:23]} Kf6 {[%emt 0:00:14]} 110. Qc3 {[%emt 0:01:12]} Kf7 {[%emt 0:00:41]} 111. Qf3+ {[%emt 0:00:38]} Kg7 {[%emt 0:00:19]} 112. Qc3 {[%emt 0:00:33]} Kf8 {[%emt 0:00:26]} 113. Qf3+ {[%emt 0:00:44]} Kg8 {[%emt 0:00:09]} 114. Qb3+ {[%emt 0:00:15]} Kh8 {[%emt 0:00:42]} 115. Qc3 {[%emt 0:00:13]} Kh7 {[%emt 0:00:33]} 116. Qd3+ {[%emt 0:00:34]} Kh6 {[%emt 0:00:24]} 117. Qd2+ {[%emt 0:00:11]} Re3+ {[%emt 0:01:29]} 118. Kf4 {[%emt 0:01:02]} R7e4+ {[%emt 0:01:23]} 119. Kf5 {[%emt 0:00:13]} Re5+ {[%emt 0:00:14]} 120. Kf6 {[%emt 0:00:11]} Re6+ {[%emt 0:00:42]} 121. Kf5 {[%emt 0:01:38]} Kh7 {[%emt 0:00:38]} 122. Qd1 {[%emt 0:01:34]} R3e5+ {[%emt 0:00:11]} 123. Kf4 {[%emt 0:00:16]} Kh6 {[%emt 0:00:24]} 124. Qd8 {[%emt 0:00:44]} Re4+ {[%emt 0:00:25]} 125. Kf5 {[%emt 0:00:19]} R4e5+ {[%emt 0:00:48]} 126. Kf4 {[%emt 0:00:11]} 1/2-1/2

[Event "76th Montenegro Championship 2024"]
[Site "Podgorica"]
[Date "2024.02.12"]
[Round "8.13"]
[White "Kandic, Milojko"]
[Black "Djurovic, Peko"]
[Result "0-1"]
[ECO "B26"]
[WhiteElo "2046"]
[BlackElo "2332"]
[Annotator "TA"]
[PlyCount "68"]
[EventDate "2024.02.06"]
[EventType "swiss"]
[EventCountry "MNE"]
[SourceTitle "playchess.com"]
[Source "ChessBase"]
[SourceQuality "1"]
[TimeControl "40/5400+30:1800+30"]

{[%evp 20,68,0,0,23,0,43,39,43,40,28,18,9,-88,-68,-143,-112,-121,-93,-306,-317,-412,-415,-364,-416,-418,-340,-429,-401,-659,-673,-725,-618,-548,-495,-560,-520,-605,-570,-1056,-1019,-1073,-1025,-2392,-2297,-3084,-2989,-2380,-1965,-2019,-1568]} 1. e4 {[%emt 0:00:09]} c5 {[%emt 0:00:05]} 2. Nc3 {[%emt 0:00:05]} Nc6 {[%emt 0:00:07]} 3. g3 {[%emt 0:00:13]} g6 {[%emt 0:00:16]} 4. Bg2 {[%emt 0:00:06]} Bg7 {[%emt 0:00:12]} 5. d3 {[%emt 0:00:29]} Nf6 {[%emt 0:00:09]} 6. Nge2 {[%emt 0:00:29]} d6 {[%emt 0:00:06]} 7. O-O {[%emt 0:00:30]} O-O {[%emt 0:00:16]} 8. h3 {[%emt 0:01:47]} Rb8 {[%emt 0:01:16]} 9. Be3 {[%emt 0:03:13]} b5 {[%emt 0:01:57][%cal Bb7b5,Bb5b4][%mdl 32]} 10. Qd2 {[%emt 0:01:16]} b4 {[%emt 0:02:34]} 11. Nd1 {[%emt 0:00:27]} Ne8 {[%emt 0:00:59]} 12. Bh6 {[%emt 0:01:42]} Bd7 {[%emt 0:01:21]} 13. Bxg7 {[%emt 0:02:53]} (13. a3 {seems wilder.} Bxh6 14. Qxh6 bxa3 15. Rxa3 Nd4 16. Nxd4 cxd4 17. c3) 13... Nxg7 {[%emt 0:00:05] White is slightly better.} 14. f4 {[%emt 0:02:26]} Nd4 {[%emt 0:10:36]} 15. Nxd4 {[%emt 0:11:19]} cxd4 {[%emt 0:00:02] [#]} 16. f5 {[%emt 0:00:15]} gxf5 $17 {[%emt 0:04:38]} 17. Qh6 {[%emt 0:20:37]} ({White should try} 17. a3 $15) 17... f6 {[%emt 1:14:21]} 18. Rf4 {[%emt 0:05:04]} Qe8 {[%emt 0:00:00]} 19. exf5 $2 {[%emt 0:03:22] This move loses the game for White.} (19. a3 $17) 19... Nxf5 $19 {[%emt 0:00:00]} 20. Rg4+ {[%emt 0:01:47]} Kh8 {[%emt 0:00:00]} 21. Qd2 {[%emt 0:02:06]} e5 {[%emt 0:00:00]} 22. Be4 {[%emt 0:02:40]} Qh5 {[%emt 0:00:00][%cal Of5g3] ...Nxg3! would now be deadly.} 23. Nf2 {[%emt 0:02:12]} d5 {[%emt 0:00:00]} 24. Bxd5 {[%emt 0:08:14]} (24. Bxf5 $142 Bxf5 25. Kg2 Bxg4 26. Nxg4) 24... Ne3 {[%emt 0:00:00] Black is clearly winning.} 25. Qe2 {[%emt 0:03:24]} Bxg4 {[%emt 0:00:00]} 26. hxg4 {[%emt 0:00:32]} Qg5 {[%emt 0:00:00]} 27. Bb3 {[%emt 0:02:00] [#]} h5 $1 {[%emt 0:00:00]} 28. a3 {[%emt 0:01:02]} (28. Qf3 hxg4) 28... hxg4 {[%emt 0:00:00]} 29. axb4 {[%emt 0:00:16]} Rb7 {[%emt 0:00:00][%cal Ob7h7] White must now prevent ...Rh7!} 30. Ne4 {[%emt 0:01:10]} Qg6 {[%emt 0:00:00][%cal Ob7h7] ...Rh7! is the strong threat.} 31. Kf2 {[%emt 0:12:10]} Rh7 {[%emt 0:00:00] Threatens to win with ...Rh2+.} 32. Rg1 {[%emt 0:01:12]} Rh2+ {[%emt 0:00:00]} 33. Ke1 {[%emt 0:00:03]} Rxe2+ {[%emt 0:00:00]} 34. Kxe2 {[%emt 0:00:03]} Qf5 {[%emt 0:00:00] Weighted Error Value: White=1.32/Black=0.21 (precise) .  Loses game:     	White=1     	---        Mistake:       	White=3     	---        Inaccurate:     	White=1     	Black=1      OK:         	White=3     	Black=3      Best:        	---       	Black=3} 0-1

[Event "76th Montenegro Championship 2024"]
[Site "Podgorica"]
[Date "2024.02.12"]
[Round "8.14"]
[White "Koljevic, Nikolina"]
[Black "Nikac, Predrag"]
[Result "1-0"]
[ECO "B48"]
[WhiteElo "1974"]
[BlackElo "2304"]
[Annotator "RC"]
[PlyCount "51"]
[EventDate "2024.02.06"]
[EventType "swiss"]
[EventCountry "MNE"]
[SourceTitle "playchess.com"]
[Source "ChessBase"]
[SourceQuality "1"]
[TimeControl "40/5400+30:1800+30"]

1. e4 {[%emt 0:00:04]} c5 {[%emt 0:03:50]} 2. Nf3 {[%emt 0:00:05]} a6 {[%emt 0:01:14]} 3. d4 {[%emt 0:00:15]} cxd4 {[%emt 0:00:13]} 4. Nxd4 {[%emt 0:00:05]} Nc6 {[%emt 0:00:11]} 5. Nc3 {[%emt 0:00:09]} e6 {[%emt 0:02:30]} 6. Be3 {[%emt 0:00:08]} Qc7 {[%emt 0:00:23]} 7. Qf3 {[%emt 0:00:26]} Nxd4 {[%emt 0:02:14]} 8. Bxd4 {[%emt 0:00:08]} Ne7 {[%emt 0:00:06]} 9. Qg3 {[%emt 0:04:35]} Qxg3 {[%emt 0:02:01]} 10. hxg3 {[%emt 0:00:08]} Nc6 {[%emt 0:00:29]} 11. Bb6 {[%emt 0:02:00]} Bb4 {[%emt 0:05:53]} 12. O-O-O {[%emt 0:01:15]} f6 {[%emt 0:04:31]} 13. Na4 {[%emt 0:05:05]} Ba5 {[%emt 0:03:41]} 14. Bxa5 {[%emt 0:03:45]} Nxa5 {[%emt 0:00:13]} 15. Nb6 {[%emt 0:00:03]} Rb8 {[%emt 0:00:21]} 16. c4 {[%emt 0:00:25]} Ke7 {[%emt 0:02:33]} 17. c5 {[%emt 0:01:13]} Nc6 {[%emt 0:03:10]} 18. f4 {[%emt 0:02:55]} Nd8 {[%emt 0:01:32]} 19. e5 {[%emt 0:06:34]} fxe5 {[%emt 0:03:55]} 20. fxe5 {[%emt 0:00:05]} h6 {[%emt 0:00:58]} 21. Bd3 {[%emt 0:03:04]} Rf8 {[%emt 0:03:18]} 22. Rhf1 {[%emt 0:03:47]} Nf7 {[%emt 0:01:05]} 23. Rde1 {[%emt 0:00:11]} Ng5 {[%emt 0:00:46]} 24. Rxf8 {[%emt 0:01:31]} Kxf8 {[%emt 0:00:33]} 25. Rf1+ {[%emt 0:00:57]} Ke7 {[%emt 0:00:43]} 26. Bg6 {[%emt 0:00:16]} 1-0

[Event "76th Montenegro Championship 2024"]
[Site "Podgorica"]
[Date "2024.02.12"]
[Round "8.15"]
[White "Miletic, Vuk"]
[Black "Popovic, Mateja"]
[Result "1-0"]
[ECO "B23"]
[WhiteElo "2213"]
[BlackElo "1880"]
[Annotator "RC"]
[PlyCount "23"]
[EventDate "2024.02.06"]
[EventType "swiss"]
[EventCountry "MNE"]
[SourceTitle "playchess.com"]
[Source "ChessBase"]
[SourceQuality "1"]
[TimeControl "40/5400+30:1800+30"]

1. e4 {[%emt 0:05:34]} c5 {[%emt 0:01:58]} 2. Nc3 {[%emt 0:00:18]} d6 {[%emt 0:00:57]} 3. d4 {[%emt 0:00:49]} cxd4 {[%emt 0:03:24]} 4. Qxd4 {[%emt 0:00:10]} Nc6 {[%emt 0:00:07]} 5. Qd2 {[%emt 0:00:04]} Nf6 {[%emt 0:01:29]} 6. b3 {[%emt 0:00:18]} g6 {[%emt 0:03:36]} 7. Bb2 {[%emt 0:00:20]} Bg7 {[%emt 0:00:07]} 8. O-O-O {[%emt 0:00:46]} a6 {[%emt 0:00:45]} 9. f3 {[%emt 0:00:22]} b5 {[%emt 0:03:33]} 10. Nd5 {[%emt 0:06:17]} Nh5 {[%emt 0:04:34]} 11. Bxg7 {[%emt 0:00:20]} Nxg7 {[%emt 0:00:08]} 12. Qc3 {[%emt 0:00:09]} 1-0

[Event "76th Montenegro Championship 2024"]
[Site "Podgorica"]
[Date "2024.02.12"]
[Round "8.16"]
[White "Petrovic, Slavko"]
[Black "Vujovic, Savo"]
[Result "0-1"]
[ECO "B34"]
[WhiteElo "1836"]
[BlackElo "2137"]
[Annotator "NA RC"]
[PlyCount "22"]
[EventDate "2024.02.06"]
[EventType "swiss"]
[EventCountry "MNE"]
[SourceTitle "playchess.com"]
[Source "ChessBase"]
[SourceQuality "1"]
[TimeControl "40/5400+30:1800+30"]

1. e4 {[%emt 0:03:35]} c5 {[%emt 0:00:07]} 2. Nf3 {[%emt 0:00:22]} Nc6 {[%emt 0:00:05]} 3. d4 {[%emt 0:00:16]} cxd4 {[%emt 0:00:08]} 4. Nxd4 {[%emt 0:00:08]} g6 {[%emt 0:00:09]} 5. Be3 {[%emt 0:00:28]} Bg7 {[%emt 0:00:22]} 6. c3 {[%emt 0:00:13]} Nf6 {[%emt 0:00:12]} 7. Nd2 {[%emt 0:01:26]} O-O {[%emt 0:00:12]} 8. Be2 {[%emt 0:00:32]} d5 {[%emt 0:00:10]} 9. exd5 {[%emt 0:21:03]} Nxd5 {[%emt 0:00:12]} 10. Nxc6 {[%emt 0:01:28]} bxc6 {[%emt 0:07:33]} 11. Bc5 {[%emt 0:16:51]} Nf4 {[%emt 0:00:22]} 0-1

[Event "76th Montenegro Championship 2024"]
[Site "Podgorica"]
[Date "2024.02.12"]
[Round "8.17"]
[White "Scekic, Veljko"]
[Black "Vukovic, Krsto"]
[Result "1-0"]
[ECO "C78"]
[WhiteElo "2206"]
[BlackElo "1904"]
[Annotator "TA"]
[PlyCount "41"]
[EventDate "2024.02.06"]
[EventType "swiss"]
[EventCountry "MNE"]
[SourceTitle "playchess.com"]
[Source "ChessBase"]
[SourceQuality "1"]
[TimeControl "40/5400+30:1800+30"]

{[%evp 19,41,45,77,68,119,108,124,141,131,87,410,46,602,368,472,436,512,487,509,491,450,439,406,407]} 1. e4 {[%emt 0:00:02]} e5 {[%emt 1:31:00]} 2. Nf3 {[%emt 0:00:06]} Nc6 {[%emt 0:00:00]} 3. Bb5 {[%emt 0:00:09][%cal Bf1b5,Bb5a4,Ba4b3][%mdl 32]} a6 {[%emt 0:00:00]} 4. Ba4 {[%emt 0:00:06]} Nf6 {[%emt 0:00:00]} 5. O-O {[%emt 0:00:05]} b5 {[%emt 0:00:00]} 6. Bb3 {[%emt 0:00:07]} Bc5 {[%emt 0:00:00]} 7. c3 {[%emt 0:00:23]} d6 {[%emt 0:00:00]} 8. d4 {[%emt 0:00:11]} exd4 {[%emt 0:00:00]} 9. cxd4 {[%emt 0:00:07]} Bb6 {[%emt 0:00:00]} 10. h3 {[%emt 0:04:02]} O-O {[%emt 0:00:00][%cal Oc8b7]} 11. Nc3 {[%emt 0:01:02]} Na5 {[%emt 0:00:00]} (11... h6 $14) 12. Bc2 $16 {[%emt 0:00:38]} c5 {[%emt 0:00:00]} 13. Bg5 {[%emt 0:00:44] [#] And now Qc1 would win. White is better.} h6 {[%emt 0:00:00]} 14. Bh4 {[%emt 0:00:18]} g5 $2 {[%emt 0:00:00][%mdl 8192]} (14... Bb7 $16 {is tougher.}) 15. Bg3 $2 {[%emt 0:01:20]} (15. Nxg5 $18 Nh7 16. Nxh7 Qxh4 17. Nxf8 Kxf8 18. dxc5 Bxc5 19. b4 Bxb4 20. Qd4 Bxc3 21. Qxc3) 15... g4 {[%emt 0:00:00][%mdl 8192]} (15... Nc4 $14) 16. dxc5 {[%emt 0:05:12]} Bxc5 {[%emt 0:00:00]} 17. hxg4 {[%emt 0:04:27]} Bxg4 {[%emt 0:00:00]} 18. Bh4 {[%emt 0:00:17]} Be6 {[%emt 0:00:00]} 19. e5 {[%emt 0:00:26]} dxe5 {[%emt 0:00:00]} 20. Qxd8 {[%emt 0:00:07]} ({Less strong is} 20. Nxe5 Qxd1 21. Raxd1 (21. Rfxd1 Be7 $16) 21... Be7 $16) 20... Rfxd8 {[%emt 0:00:00]} 21. Bxf6 {[%emt 1:21:11] Weighted Error Value: White=0.77/Black=1.31.  Loses game:     	---       	Black=2      Missed win:     	White=1     	---        Mistake:       	---       	Black=1      Inaccurate:     	White=1     	---        OK:         	White=3     	Black=2      Best:        	White=3     	---} 1-0